[Event "MČR juniorů a juniorek v rapid šachu 2024"]
[Site "Hotel Fit Fun, Harrachov, Czech Republic"]
[Date "2024.09.22"]
[Round "9.6"]
[White "Slaby Matej"]
[Black "Garabik Marek"]
[Result "1-0"]
[TimeControl "20+5"]
[WhiteFideId "23734876"]
[BlackFideId "23717742"]
[WhiteElo "1948"]
[BlackElo "1933"]

1. Nf3 {[%clk 00:20:08]} {[%emt 00:00:02]} e6 {[%clk 00:20:10]} 2. d4 {[%clk
00:20:11]} {[%emt 00:00:02]} d5 {[%clk 00:20:14]} 3. e3 {[%clk 00:20:15]} Nf6
{[%clk 00:20:18]} {[%emt 00:00:01]} 4. Bd3 {[%clk 00:20:19]} Bd6 {[%clk
00:20:21]} {[%emt 00:00:02]} 5. Nbd2 {[%clk 00:20:22]} O-O {[%clk 00:20:24]}
{[%emt 00:00:02]} 6. O-O {[%clk 00:20:25]} {[%emt 00:00:02]} c6 {[%clk
00:20:25]} {[%emt 00:00:04]} 7. Re1 {[%clk 00:20:15]} {[%emt 00:00:15]} Nbd7
{[%clk 00:20:11]} {[%emt 00:00:19]} 8. e4 {[%clk 00:20:18]} {[%emt 00:00:01]}
dxe4 {[%clk 00:20:15]} {[%emt 00:00:01]} 9. Nxe4 {[%clk 00:20:22]} {[%emt
00:00:02]} Nxe4 {[%clk 00:20:19]} 10. Rxe4 {[%clk 00:20:25]} {[%emt 00:00:02]}
Nf6 {[%clk 00:20:22]} {[%emt 00:00:01]} 11. Rh4 {[%clk 00:20:27]} {[%emt
00:00:03]} g6 {[%clk 00:19:33]} {[%emt 00:00:54]} 12. Bh6 {[%clk 00:18:43]}
{[%emt 00:01:48]} Re8 {[%clk 00:19:37]} {[%emt 00:00:01]} 13. Qd2 {[%clk
00:17:56]} {[%emt 00:00:52]} Be7 {[%clk 00:17:01]} {[%emt 00:02:40]} 14. Bg5
{[%clk 00:17:14]} {[%emt 00:00:47]} Nh5 {[%clk 00:14:19]} {[%emt 00:02:47]} 15.
Bxe7 {[%clk 00:16:11]} {[%emt 00:01:08]} Qxe7 {[%clk 00:14:23]} 16. Qh6 {[%clk
00:15:19]} {[%emt 00:00:57]} Qf8 {[%clk 00:14:27]} {[%emt 00:00:01]} 17. Rxh5
{[%clk 00:15:18]} {[%emt 00:00:06]} Qxh6 {[%clk 00:14:10]} {[%emt 00:00:23]} 18.
Rxh6 {[%clk 00:15:21]} Kg7 {[%clk 00:14:14]} {[%emt 00:00:01]} 19. Rh4 {[%clk
00:15:25]} {[%emt 00:00:01]} f5 {[%clk 00:14:12]} {[%emt 00:00:07]} 20. Ne5
{[%clk 00:14:15]} {[%emt 00:01:15]} Rd8 {[%clk 00:13:26]} {[%emt 00:00:51]} 21.
c3 {[%clk 00:13:21]} {[%emt 00:00:59]} h6 {[%clk 00:13:27]} {[%emt 00:00:04]}
22. f4 {[%clk 00:13:09]} {[%emt 00:00:16]} c5 {[%clk 00:13:22]} {[%emt
00:00:11]} 23. dxc5 {[%clk 00:12:31]} {[%emt 00:00:43]} g5 {[%clk 00:13:25]}
{[%emt 00:00:01]} 24. Rh3 {[%clk 00:12:21]} {[%emt 00:00:16]} Bd7 {[%clk
00:13:04]} {[%emt 00:00:26]} 25. Re1 {[%clk 00:10:33]} {[%emt 00:01:52]} Be8
{[%clk 00:12:53]} {[%emt 00:00:17]} 26. Rf3 {[%clk 00:09:44]} {[%emt 00:00:54]}
Bh5 {[%clk 00:12:47]} {[%emt 00:00:11]} 27. Rf2 {[%clk 00:09:46]} {[%emt
00:00:02]} Kf6 {[%clk 00:12:35]} {[%emt 00:00:17]} 28. Bc4 {[%clk 00:09:35]}
{[%emt 00:00:16]} Rac8 {[%clk 00:12:29]} {[%emt 00:00:11]} 29. b4 {[%clk
00:09:25]} {[%emt 00:00:16]} Rc7 {[%clk 00:12:09]} {[%emt 00:00:24]} 30. fxg5+
{[%clk 00:09:07]} {[%emt 00:00:22]} hxg5 {[%clk 00:12:13]} {[%emt 00:00:02]} 31.
g4 {[%clk 00:09:10]} {[%emt 00:00:02]} Be8 {[%clk 00:11:37]} {[%emt 00:00:41]}
32. gxf5 {[%clk 00:06:46]} {[%emt 00:02:29]} exf5 {[%clk 00:11:38]} {[%emt
00:00:04]} 33. Ng4+ {[%clk 00:06:41]} {[%emt 00:00:10]} Kg6 {[%clk 00:11:17]}
{[%emt 00:00:26]} 34. Re6+ {[%clk 00:06:15]} {[%emt 00:00:31]} Kh5 {[%clk
00:11:22]} 35. Nf6+ {[%clk 00:06:02]} {[%emt 00:00:19]} Kh4 {[%clk 00:11:24]}
{[%emt 00:00:03]} 36. Rxe8 {[%clk 00:06:05]} {[%emt 00:00:01]} Rd1+ {[%clk
00:11:28]} {[%emt 00:00:02]} 37. Kg2 {[%clk 00:06:08]} {[%emt 00:00:02]} g4
{[%clk 00:11:28]} {[%emt 00:00:05]} 38. Rxf5 {[%clk 00:05:48]} {[%emt
00:00:25]} Rd2+ {[%clk 00:11:28]} {[%emt 00:00:05]} 39. Rf2 {[%clk 00:05:52]}
Rd1 {[%clk 00:11:12]} {[%emt 00:00:21]} 40. Rf5 {[%clk 00:05:30]} {[%emt
00:00:27]} Rd2+ {[%clk 00:11:16]} {[%emt 00:00:02]} 41. Be2 {[%emt 00:00:30]}
Rxe2+ {[%clk 00:10:55]} 42. Rxe2 {[%emt 00:00:02]} Rh7 43. Re4 {[%clk
00:05:31]} {[%emt 00:00:07]} Rh5 {[%emt 00:00:12]} 1-0



[ePGN "0.1;DGT LiveChess/2.2.6"]

[Event "MČR juniorů a juniorek v rapid šachu 2024"]
[Site "Hotel Fit Fun, Harrachov, Czech Republic"]
[Date "2024.09.22"]
[Round "9.7"]
[White "Steinbauer Sebastian"]
[Black "Urbansky Stepan"]
[Result "1-0"]
[TimeControl "20+5"]
[WhiteFideId "399272"]
[BlackFideId "23761741"]
[WhiteElo "2062"]
[BlackElo "1837"]

1. e4 {[%clk 00:20:08]} {[%emt 00:00:01]} c5 {[%clk 00:20:06]} {[%emt
00:00:05]} 2. d4 {[%clk 00:20:12]} {[%emt 00:00:01]} cxd4 {[%clk 00:20:08]}
{[%emt 00:00:03]} 3. c3 {[%clk 00:20:16]} {[%emt 00:00:01]} Nf6 {[%clk
00:20:11]} {[%emt 00:00:01]} 4. e5 {[%clk 00:20:18]} {[%emt 00:00:03]} Nd5
{[%clk 00:20:15]} {[%emt 00:00:01]} 5. cxd4 {[%clk 00:20:20]} {[%emt 00:00:04]}
d6 {[%clk 00:20:15]} {[%emt 00:00:04]} 6. Nf3 {[%clk 00:20:23]} {[%emt
00:00:02]} Nc6 {[%clk 00:20:18]} {[%emt 00:00:02]} 7. Nc3 {[%clk 00:19:45]}
{[%emt 00:00:44]} dxe5 {[%clk 00:20:20]} {[%emt 00:00:02]} 8. dxe5 {[%clk
00:18:58]} {[%emt 00:00:52]} Nxc3 {[%clk 00:20:19]} {[%emt 00:00:06]} 9. Qxd8+
{[%clk 00:18:59]} {[%emt 00:00:04]} Kxd8 {[%clk 00:20:22]} {[%emt 00:00:02]} 10.
bxc3 {[%clk 00:19:02]} {[%emt 00:00:02]} Bf5 {[%clk 00:17:37]} {[%emt
00:02:49]} 11. Bb5 {[%clk 00:18:25]} {[%emt 00:00:43]} Rc8 {[%clk 00:17:06]}
{[%emt 00:00:37]} 12. Bxc6 {[%clk 00:18:22]} {[%emt 00:00:08]} bxc6 {[%clk
00:16:57]} {[%emt 00:00:14]} 13. Be3 {[%clk 00:18:24]} {[%emt 00:00:03]} Rc7
{[%clk 00:16:24]} {[%emt 00:00:38]} 14. O-O {[%clk 00:17:23]} {[%emt 00:01:06]}
e6 {[%clk 00:16:13]} {[%emt 00:00:15]} 15. Rfd1+ {[%clk 00:17:26]} {[%emt
00:00:03]} Kc8 {[%clk 00:16:08]} {[%emt 00:00:10]} 16. Rd2 {[%clk 00:16:27]}
{[%emt 00:01:04]} Be7 {[%clk 00:15:19]} {[%emt 00:00:54]} 17. Nd4 {[%clk
00:13:39]} {[%emt 00:02:53]} Be4 {[%clk 00:14:37]} {[%emt 00:00:46]} 18. f3
{[%clk 00:13:40]} {[%emt 00:00:04]} Bd5 {[%clk 00:14:41]} {[%emt 00:00:01]} 19.
Rc1 {[%clk 00:13:35]} {[%emt 00:00:10]} Bc4 {[%clk 00:14:19]} {[%emt 00:00:26]}
20. Nb3 {[%clk 00:12:49]} {[%emt 00:00:52]} Bxb3 {[%clk 00:09:37]} {[%emt
00:04:48]} 21. axb3 {[%clk 00:12:48]} {[%emt 00:00:06]} Rd8 {[%clk 00:09:32]}
{[%emt 00:00:09]} 22. Rxd8+ {[%clk 00:12:19]} {[%emt 00:00:35]} Bxd8 {[%clk
00:09:14]} {[%emt 00:00:23]} 23. Ra1 {[%clk 00:12:07]} {[%emt 00:00:16]} Rb7
{[%clk 00:08:06]} {[%emt 00:01:14]} 24. b4 {[%clk 00:08:58]} {[%emt 00:03:15]}
Bb6 {[%clk 00:08:09]} {[%emt 00:00:01]} 25. Kf2 {[%clk 00:08:52]} {[%emt
00:00:10]} Kd7 {[%clk 00:07:32]} {[%emt 00:00:42]} 26. Bxb6 {[%clk 00:07:55]}
{[%emt 00:01:03]} axb6 {[%clk 00:07:22]} {[%emt 00:00:16]} 27. Ra8 {[%clk
00:07:58]} {[%emt 00:00:01]} h5 {[%clk 00:07:00]} {[%emt 00:00:26]} 28. Rf8
{[%clk 00:07:48]} {[%emt 00:00:16]} Ke7 {[%clk 00:07:01]} {[%emt 00:00:04]} 29.
Rc8 {[%clk 00:07:50]} {[%emt 00:00:03]} Kd7 {[%clk 00:07:05]} {[%emt 00:00:02]}
30. Rh8 {[%clk 00:07:16]} {[%emt 00:00:39]} g6 {[%clk 00:07:06]} {[%emt
00:00:03]} 31. g4 {[%clk 00:07:05]} {[%emt 00:00:17]} hxg4 {[%clk 00:06:57]}
{[%emt 00:00:14]} 32. fxg4 {[%clk 00:07:08]} {[%emt 00:00:02]} Ra7 {[%clk
00:06:36]} {[%emt 00:00:26]} 33. Ke3 {[%clk 00:04:15]} {[%emt 00:02:58]} c5
{[%clk 00:05:38]} {[%emt 00:01:03]} 34. bxc5 {[%clk 00:03:07]} {[%emt
00:01:13]} bxc5 {[%clk 00:05:41]} {[%emt 00:00:02]} 35. Rf8 {[%clk 00:02:31]}
{[%emt 00:00:41]} Kc6 {[%clk 00:05:33]} {[%emt 00:00:13]} 36. Kf4 {[%clk
00:01:36]} {[%emt 00:01:00]} Kd5 {[%clk 00:04:36]} {[%emt 00:01:02]} 37. h4
{[%clk 00:01:36]} {[%emt 00:00:05]} Kc4 {[%clk 00:02:28]} {[%emt 00:02:13]} 38.
h5 {[%clk 00:01:33]} {[%emt 00:00:07]} gxh5 {[%clk 00:02:27]} {[%emt 00:00:06]}
39. gxh5 {[%clk 00:01:37]} {[%emt 00:00:02]} Kxc3 {[%clk 00:02:11]} {[%emt
00:00:20]} 40. h6 {[%clk 00:01:39]} {[%emt 00:00:03]} Ra1 {[%clk 00:01:01]}
{[%emt 00:01:14]} 41. h7 {[%clk 00:01:39]} {[%emt 00:00:05]} Rh1 {[%clk
00:00:12]} {[%emt 00:00:54]} 42. h8=Q {[%clk 00:01:42]} {[%emt 00:00:02]} Rxh8
{[%clk 00:00:16]} {[%emt 00:00:01]} 43. Rxh8 {[%clk 00:01:46]} {[%emt
00:00:02]} c4 {[%clk 00:00:18]} {[%emt 00:00:02]} 44. Rd8 {[%clk 00:01:31]}
{[%emt 00:00:20]} Kc2 {[%clk 00:00:15]} {[%emt 00:00:09]} 45. Kg5 {[%clk
00:01:29]} {[%emt 00:00:06]} c3 {[%clk 00:00:16]} {[%emt 00:00:05]} 46. Kf6
{[%clk 00:01:33]} {[%emt 00:00:01]} Kc1 {[%clk 00:00:19]} {[%emt 00:00:02]} 47.
Kxf7 {[%emt 00:00:06]} 1-0



[ePGN "0.1;DGT LiveChess/2.2.6"]

[Event "MČR juniorů a juniorek v rapid šachu 2024"]
[Site "Hotel Fit Fun, Harrachov, Czech Republic"]
[Date "2024.09.22"]
[Round "9.8"]
[White "Juhanak Daniel"]
[Black "Ret Adam Josef"]
[Result "1/2-1/2"]
[TimeControl "20+5"]
[WhiteFideId "23718765"]
[BlackFideId "384240"]
[WhiteElo "1982"]
[BlackElo "2038"]

1. Nf3 {[%clk 00:20:09]} d5 {[%clk 00:20:07]} {[%emt 00:00:03]} 2. c4 {[%clk
00:20:13]} {[%emt 00:00:01]} e6 {[%clk 00:20:11]} 3. g3 {[%clk 00:20:17]}
{[%emt 00:00:01]} Nf6 {[%clk 00:20:11]} {[%emt 00:00:05]} 4. Bg2 {[%clk
00:20:21]} {[%emt 00:00:01]} Be7 {[%clk 00:20:15]} 5. d4 {[%clk 00:20:24]}
{[%emt 00:00:01]} O-O {[%clk 00:20:16]} {[%emt 00:00:04]} 6. Nc3 {[%clk
00:20:29]} dxc4 {[%clk 00:20:12]} {[%emt 00:00:09]} 7. Ne5 {[%clk 00:20:32]}
{[%emt 00:00:01]} c5 {[%clk 00:18:56]} {[%emt 00:01:21]} 8. dxc5 {[%clk
00:20:05]} {[%emt 00:00:32]} Qxd1+ {[%clk 00:18:17]} {[%emt 00:00:44]} 9. Nxd1
{[%clk 00:19:55]} {[%emt 00:00:15]} Bxc5 {[%clk 00:18:18]} {[%emt 00:00:04]} 10.
O-O {[%clk 00:18:02]} {[%emt 00:01:58]} Nd5 {[%clk 00:17:00]} {[%emt 00:01:23]}
11. Ne3 {[%clk 00:17:00]} {[%emt 00:01:07]} Nxe3 {[%clk 00:14:27]} {[%emt
00:02:38]} 12. Bxe3 {[%clk 00:17:02]} {[%emt 00:00:03]} Bxe3 {[%clk 00:13:11]}
{[%emt 00:01:21]} 13. fxe3 {[%clk 00:17:06]} Nc6 {[%clk 00:10:37]} {[%emt
00:02:38]} 14. Nxc4 {[%clk 00:15:19]} {[%emt 00:01:52]} Bd7 {[%clk 00:09:51]}
{[%emt 00:00:51]} 15. Rad1 {[%clk 00:14:39]} {[%emt 00:00:45]} Rad8 {[%clk
00:09:06]} {[%emt 00:00:50]} 16. Nd6 {[%clk 00:14:18]} {[%emt 00:00:27]} Bc8
{[%clk 00:07:52]} {[%emt 00:01:19]} 17. Nxc8 {[%clk 00:10:34]} {[%emt
00:03:49]} Rxc8 {[%clk 00:05:30]} {[%emt 00:02:27]} 18. Rd7 {[%clk 00:09:54]}
{[%emt 00:00:44]} Ne5 {[%clk 00:05:35]} {[%emt 00:00:01]} 19. Rxb7 {[%clk
00:09:21]} {[%emt 00:00:38]} Rc2 {[%clk 00:05:38]} 20. Rxa7 {[%clk 00:08:23]}
{[%emt 00:01:03]} Rxb2 {[%clk 00:05:38]} {[%emt 00:00:05]} 21. a4 {[%clk
00:07:11]} {[%emt 00:01:17]} Rxe2 {[%clk 00:05:06]} {[%emt 00:00:37]} 22. a5
{[%clk 00:05:21]} {[%emt 00:01:55]} Nc4 {[%clk 00:04:44]} {[%emt 00:00:26]} 23.
Rc1 {[%clk 00:04:39]} {[%emt 00:00:47]} Nxe3 {[%clk 00:03:29]} {[%emt
00:01:21]} 24. Bf3 {[%clk 00:04:41]} {[%emt 00:00:03]} Ra2 {[%clk 00:03:33]} 25.
a6 {[%clk 00:04:23]} {[%emt 00:00:23]} g6 {[%clk 00:03:00]} {[%emt 00:00:37]}
26. Re1 {[%clk 00:01:09]} {[%emt 00:03:20]} Nd5 {[%clk 00:02:42]} {[%emt
00:00:24]} 27. Bxd5 {[%clk 00:00:30]} {[%emt 00:00:44]} 1/2-1/2



[ePGN "0.1;DGT LiveChess/2.2.6"]

[Event "MČR juniorů a juniorek v rapid šachu 2024"]
[Site "Hotel Fit Fun, Harrachov, Czech Republic"]
[Date "2024.09.22"]
[Round "9.9"]
[White "Sulcova Tereza Radmila"]
[Black "Vilimek Vit"]
[Result "0-1"]
[TimeControl "20+5"]
[WhiteFideId "395196"]
[BlackFideId "23718218"]
[WhiteElo "1800"]
[BlackElo "2025"]

1. e4 {[%clk 00:20:07]} {[%emt 00:00:01]} c5 {[%clk 00:20:09]} {[%emt
00:00:02]} 2. c4 {[%clk 00:20:11]} {[%emt 00:00:01]} g6 {[%clk 00:20:01]}
{[%emt 00:00:12]} 3. Nc3 {[%clk 00:20:14]} {[%emt 00:00:02]} Bg7 {[%clk
00:20:05]} {[%emt 00:00:01]} 4. g3 {[%clk 00:20:18]} {[%emt 00:00:01]} Nc6
{[%clk 00:19:50]} {[%emt 00:00:20]} 5. Bg2 {[%clk 00:20:21]} {[%emt 00:00:02]}
d6 {[%clk 00:19:53]} {[%emt 00:00:02]} 6. Nge2 {[%clk 00:20:24]} {[%emt
00:00:02]} e6 {[%clk 00:19:01]} {[%emt 00:00:57]} 7. O-O {[%clk 00:20:22]}
{[%emt 00:00:07]} Nge7 {[%clk 00:19:04]} 8. d3 {[%clk 00:20:26]} {[%emt
00:00:03]} O-O {[%clk 00:19:07]} {[%emt 00:00:02]} 9. Rb1 {[%clk 00:20:29]}
{[%emt 00:00:02]} a6 {[%clk 00:19:00]} {[%emt 00:00:12]} 10. a3 {[%clk
00:20:16]} {[%emt 00:00:18]} Rb8 {[%clk 00:19:04]} {[%emt 00:00:01]} 11. b4
{[%clk 00:20:03]} {[%emt 00:00:18]} cxb4 {[%clk 00:19:07]} {[%emt 00:00:01]} 12.
axb4 {[%clk 00:20:06]} {[%emt 00:00:02]} b5 {[%clk 00:19:12]} 13. cxb5 {[%clk
00:19:45]} {[%emt 00:00:26]} axb5 {[%clk 00:19:15]} 14. d4 {[%clk 00:19:21]}
{[%emt 00:00:29]} d5 {[%clk 00:19:13]} {[%emt 00:00:08]} 15. e5 {[%clk
00:18:46]} {[%emt 00:00:39]} Qb6 {[%clk 00:18:55]} {[%emt 00:00:23]} 16. Kh1
{[%clk 00:18:18]} {[%emt 00:00:34]} Nf5 {[%clk 00:18:52]} {[%emt 00:00:08]} 17.
Be3 {[%clk 00:17:56]} {[%emt 00:00:27]} Bd7 {[%clk 00:18:55]} {[%emt 00:00:03]}
18. Qd3 {[%clk 00:17:50]} {[%emt 00:00:10]} Rfc8 {[%clk 00:18:51]} {[%emt
00:00:09]} 19. g4 {[%clk 00:16:52]} {[%emt 00:01:02]} Nxe3 {[%clk 00:18:55]}
{[%emt 00:00:02]} 20. Qxe3 {[%clk 00:16:42]} {[%emt 00:00:15]} Bf8 {[%clk
00:18:56]} {[%emt 00:00:04]} 21. Na2 {[%clk 00:16:30]} {[%emt 00:00:17]} Ra8
{[%clk 00:19:01]} 22. Nec3 {[%clk 00:16:30]} {[%emt 00:00:05]} Qxd4 {[%clk
00:18:56]} {[%emt 00:00:09]} 23. Qg3 {[%clk 00:15:47]} {[%emt 00:00:49]} Nxb4
{[%clk 00:18:20]} {[%emt 00:00:41]} 24. Ne2 {[%clk 00:15:09]} {[%emt 00:00:43]}
Qc4 {[%clk 00:17:59]} {[%emt 00:00:26]} 25. Nac1 {[%clk 00:15:07]} {[%emt
00:00:07]} Na2 {[%clk 00:17:01]} {[%emt 00:01:04]} 26. Re1 {[%clk 00:14:02]}
{[%emt 00:01:09]} Nxc1 {[%clk 00:16:19]} {[%emt 00:00:47]} 27. Rbxc1 {[%clk
00:14:05]} {[%emt 00:00:02]} Qxe2 {[%clk 00:15:59]} {[%emt 00:00:25]} 28. Rxe2
{[%clk 00:14:09]} Rxc1+ {[%clk 00:16:03]} {[%emt 00:00:01]} 29. Bf1 {[%clk
00:14:13]} Rxf1+ {[%clk 00:15:37]} {[%emt 00:00:32]} 30. Kg2 {[%clk 00:14:16]}
{[%emt 00:00:01]} Raa1 {[%clk 00:15:35]} {[%emt 00:00:07]} 31. Qf4 {[%clk
00:12:19]} {[%emt 00:02:02]} Rg1+ {[%clk 00:15:30]} {[%emt 00:00:10]} 32. Kh3
{[%clk 00:12:18]} {[%emt 00:00:06]} Ra4 {[%clk 00:14:31]} {[%emt 00:01:04]} 33.
Qf6 {[%clk 00:12:12]} {[%emt 00:00:11]} Raxg4 {[%clk 00:14:07]} {[%emt
00:00:29]} 34. Qd8 {[%clk 00:12:06]} {[%emt 00:00:11]} Rg5 {[%clk 00:14:02]}
{[%emt 00:00:10]} 0-1